bitfinex-derivatives/quotes_BTCF0:USTF0_20240825
["timestamp","ask_amount","ask_price","bid_price","bid_amount"]
[1724590421963,1.54995225,63936.0,63935.0,0.006]
[1724590424578,1.64372518,63936.0,63935.0,0.006]
[1724590425167,1.08071225,63936.0,63935.0,0.006]
[1724590426677,0.71991174,63936.0,63935.0,0.006]
[1724590426977,1.08071174,63936.0,63935.0,0.026]
[1724590427275,1.00254774,63936.0,63935.0,0.026]
[1724590427870,1.00254774,63936.0,63935.0,0.07283549]
[1724590427871,1.05535436,63936.0,63935.0,0.07283549]
[1724590428071,0.0282381,63936.0,63935.0,0.104166]
[1724590428471,0.06250579,63938.0,63935.0,0.89524]
[1724590428782,0.04688098,63937.0,63936.0,0.15635773]
[1724590428981,0.04688098,63938.0,63937.0,0.078163]
[1724590429179,0.04688098,63939.0,63938.0,0.078162]
[1724590429380,0.04688098,63939.0,63938.0,0.226362]
[1724590429883,0.04688098,63939.0,63938.0,0.226762]
[1724590430077,0.04688098,63940.0,63939.0,0.078161]
[1724590430279,0.04688098,63941.0,63939.0,0.23061259]
[1724590430483,0.04688098,63941.0,63940.0,0.3608]
[1724590430786,0.04688098,63941.0,63940.0,0.4408]
[1724590430986,0.04688098,63941.0,63940.0,0.4412]
[1724590431287,0.04688098,63941.0,63940.0,0.48802339]
[1724590431288,0.04682476,63941.0,63940.0,0.48802339]
[1724590431979,0.04682476,63941.0,63940.0,0.56618223]
[1724590432181,0.04682476,63942.0,63940.0,0.56617222]
[1724590432985,0.63590076,63943.0,63941.0,0.0004]
[1724590433172,0.04682476,63942.0,63941.0,0.0804]
[1724590433373,0.63582076,63943.0,63941.0,0.0804]
[1724590433575,0.63498076,63943.0,63941.0,0.0804]
[1724590433982,0.04682476,63942.0,63941.0,0.0804]
[1724590434184,0.588996,63943.0,63942.0,0.0004]
[1724590434487,0.588156,63943.0,63942.0,0.0704]
[1724590434689,0.63495128,63943.0,63942.0,0.0704]
[1724590434989,0.55679523,63943.0,63942.0,0.148957]
[1724590435181,0.55679523,63943.0,63942.0,0.148557]
[1724590436186,0.51,63943.0,63942.0,0.148557]
[1724590436381,0.512,63943.0,63942.0,0.148557]
[1724590436586,0.55879523,63943.0,63942.0,0.148557]
[1724590436787,0.512,63943.0,63942.0,0.148557]
[1724590437788,0.55879523,63943.0,63942.0,0.148557]
[1724590438094,0.512,63943.0,63942.0,0.148557]
[1724590441697,0.512,63943.0,63942.0,0.17637964]
[1724590441888,0.590156,63943.0,63942.0,0.17637964]
[1724590445397,0.590156,63943.0,63942.0,0.148557]
[1724590446188,0.65266179,63943.0,63942.0,0.148557]
[1724590448498,0.65266179,63943.0,63942.0,0.0704]
[1724590451294,0.590156,63943.0,63942.0,0.0704]
[1724590454193,0.590156,63943.0,63942.0,0.11721322]
[1724590455103,0.590156,63943.0,63942.0,0.0704]
[1724590455104,0.65257597,63943.0,63942.0,0.0704]
[1724590455292,0.65257597,63943.0,63942.0,0.11721322]
[1724590456201,0.590156,63943.0,63942.0,0.0704]
[1724590457199,0.65265068,63943.0,63942.0,0.0704]
[1724590457497,0.590156,63943.0,63942.0,0.0704]
[1724590457699,0.002,63943.0,63942.0,0.148557]
[1724590457906,0.002,63943.0,63942.0,0.26765503]
[1724590458201,0.04889645,63943.0,63942.0,0.26765503]
[1724590458503,0.002,63943.0,63942.0,0.26765503]
[1724590461508,0.002,63943.0,63942.0,0.62845503]
[1724590463603,0.002,63943.0,63942.0,0.70654805]
[1724590468201,0.002,63943.0,63942.0,0.57181502]
[1724590468402,0.04889645,63943.0,63942.0,0.509357]
[1724590468997,0.04889645,63943.0,63942.0,0.52890568]
[1724590469602,0.04889645,63943.0,63942.0,0.5289057]
[1724590470099,0.002,63943.0,63942.0,0.509357]
[1724590470510,0.002,63943.0,63942.0,0.148557]
[1724590470808,0.002,63943.0,63942.0,0.509357]
[1724590471209,0.002,63943.0,63942.0,0.57180808]
[1724590472512,0.002,63943.0,63942.0,0.21100808]
[1724590472708,0.002,63943.0,63942.0,0.57180808]
[1724590473510,0.002,63943.0,63942.0,0.21100808]
[1724590473706,0.002,63943.0,63942.0,0.57180808]
[1724590474418,0.002,63943.0,63942.0,0.21100808]
[1724590474816,0.002,63943.0,63942.0,1.44096808]
[1724590475009,0.04683637,63953.0,63943.0,0.46916]
[1724590475313,0.04681815,63956.0,63955.0,0.078141]
[1724590475517,0.04681815,63956.0,63955.0,0.168141]
[1724590475719,0.04681815,63957.0,63956.0,0.07814]
[1724590476022,0.10774374,63960.0,63956.0,0.07814]
[1724590476023,0.10774374,63960.0,63958.0,0.078137]
[1724590476320,0.0453,63960.0,63958.0,0.508937]
[1724590476714,0.0453,63960.0,63959.0,0.0004]
[1724590477015,0.0453,63960.0,63959.0,0.09718784]
[1724590477520,0.0453,63960.0,63959.0,0.0504]
[1724590478320,0.0453,63960.0,63959.0,0.0514]
[1724590478706,0.0473,63960.0,63959.0,0.0524]
[1724590482717,0.0473,63960.0,63959.0,0.130536]
[1724590483217,0.07263262,63960.0,63959.0,0.130536]
[1724590489122,0.0473,63960.0,63959.0,0.130536]
[1724590489320,0.07263262,63960.0,63959.0,0.130536]
[1724590491216,0.0473,63960.0,63959.0,0.130536]
[1724590493425,0.125435,63960.0,63959.0,0.130536]
[1724590498230,0.15076777,63960.0,63959.0,0.130536]
[1724590501136,0.18094889,63960.0,63959.0,0.130536]
[1724590503335,0.29024941,63960.0,63959.0,0.130536]
[1724590503633,0.29024941,63960.0,63959.0,0.0524]
[1724590504132,0.29025387,63960.0,63959.0,0.0524]
[1724590504434,0.21921824,63960.0,63959.0,0.0524]
[1724590505230,0.21921824,63960.0,63959.0,0.0024]
[1724590505538,1.08825824,63960.0,63959.0,0.0024]
[1724590505841,1.21317312,63960.0,63959.0,0.0024]
[1724590506233,1.01980979,63960.0,63959.0,0.0024]
[1724590507534,0.61980979,63960.0,63959.0,0.0024]
[1724590508834,0.61981036,63960.0,63959.0,0.0024]
[1724590509740,0.98061036,63960.0,63959.0,0.0024]
[1724590510831,0.61981036,63960.0,63959.0,0.0024]
[1724590511041,0.98061036,63960.0,63959.0,0.0024]
[1724590511439,0.61981036,63960.0,63959.0,0.0024]
[1724590511640,0.98061036,63960.0,63959.0,0.0024]
[1724590512633,0.61981036,63960.0,63959.0,0.0024]
[1724590512840,0.98061036,63960.0,63959.0,0.0024]
[1724590513635,0.955275,63960.0,63959.0,0.0024]
[1724590513834,0.61981038,63960.0,63959.0,0.0024]
[1724590514034,0.98061038,63960.0,63959.0,0.0024]
[1724590514234,0.61981038,63960.0,63959.0,0.0024]
[1724590514441,0.98061038,63960.0,63959.0,0.0024]
[1724590514634,0.15077038,63960.0,63959.0,0.0024]
[1724590514830,0.51157038,63960.0,63959.0,0.0024]
[1724590515743,0.15077038,63960.0,63959.0,0.0024]
[1724590515946,0.51157038,63960.0,63959.0,0.0024]
[1724590516447,0.51157038,63960.0,63959.0,0.0224]
[1724590516743,0.486235,63960.0,63959.0,0.0224]
[1724590517441,0.125435,63960.0,63959.0,0.0224]
[1724590517843,0.125435,63960.0,63959.0,0.06918784]
[1724590518035,0.18790033,63960.0,63959.0,0.0224]
[1724590518238,0.18790033,63960.0,63959.0,0.0692277]
[1724590519443,0.18790033,63960.0,63959.0,0.0224]
[1724590520739,0.14260033,63960.0,63959.0,0.0224]
[1724590521048,0.06446533,63960.0,63959.0,0.100536]
[1724590521349,0.05751421,63960.0,63959.0,0.100536]
[1724590522043,0.0273329,63960.0,63959.0,0.100536]
[1724590524053,0.0273329,63960.0,63959.0,0.12931365]
[1724590524945,0.1054679,63960.0,63959.0,0.12931365]
[1724590528351,0.080135,63960.0,63959.0,0.12931365]
[1724590533761,0.14260957,63960.0,63959.0,0.12931365]
[1724590534152,0.080135,63960.0,63959.0,0.12931365]
[1724590535262,0.14260902,63960.0,63959.0,0.12931365]
[1724590536359,0.13564949,63960.0,63959.0,0.12931365]
[1724590538055,0.13565004,63960.0,63959.0,0.12931365]
[1724590543459,0.080135,63960.0,63959.0,0.12931365]
[1724590545766,0.080135,63960.0,63959.0,0.19172006]
[1724590546154,0.080135,63960.0,63959.0,0.12931365]
[1724590546668,0.080135,63960.0,63959.0,0.19172006]
[1724590547456,0.080135,63960.0,63959.0,0.12931365]
[1724590547457,0.15824953,63960.0,63959.0,0.12931365]
[1724590547761,0.080135,63960.0,63959.0,0.12931365]
[1724590558469,0.10546786,63960.0,63959.0,0.12931365]
[1724590560871,0.10546786,63960.0,63959.0,0.17614389]
[1724590562473,0.10546801,63960.0,63959.0,0.17614389]
[1724590563261,0.10546801,63960.0,63959.0,0.12931365]
[1724590563468,0.10546801,63960.0,63959.0,0.05117765]
[1724590566567,0.080135,63960.0,63959.0,0.05117765]
[1724590567872,0.128735,63960.0,63959.0,0.05117765]
[1724590568067,0.176835,63960.0,63959.0,0.05117765]
[1724590568272,0.176835,63960.0,63959.0,0.0224]
[1724590568474,0.61577,63960.0,63959.0,0.0024]
[1724590568676,0.64110385,63960.0,63959.0,0.0024]
[1724590574069,0.73486573,63960.0,63959.0,0.0024]
[1724590574271,0.37406573,63960.0,63959.0,0.0024]
[1724590574471,0.28030385,63960.0,63959.0,0.0024]
[1724590574666,0.64110385,63960.0,63959.0,0.0024]
[1724590575980,0.73486573,63960.0,63959.0,0.0024]
[1724590576583,0.28030385,63960.0,63959.0,0.0024]
[1724590576770,0.64110385,63960.0,63959.0,0.0024]
[1724590577477,0.28030385,63960.0,63959.0,0.0024]
[1724590577976,0.64110385,63960.0,63959.0,0.0024]
[1724590578582,0.28030385,63960.0,63959.0,0.0024]
[1724590578978,0.64110385,63960.0,63959.0,0.0024]
[1724590580484,0.69380761,63960.0,63959.0,0.0024]
[1724590581384,0.69380761,63960.0,63959.0,0.0124]
[1724590581578,0.61577,63960.0,63959.0,0.0124]
[1724590583283,0.25497,63960.0,63959.0,0.0124]
[1724590583690,0.176835,63960.0,63959.0,0.0124]
[1724590586487,0.686835,63960.0,63959.0,0.0124]
[1724590588583,0.71216961,63960.0,63959.0,0.0024]
[1724590591897,0.71216961,63960.0,63959.0,0.0014]
[1724590592089,0.71216961,63960.0,63959.0,0.0024]
[1724590595696,0.76492334,63960.0,63959.0,0.0024]
[1724590597497,0.686835,63960.0,63959.0,0.0024]
[1724590598288,0.76493928,63960.0,63959.0,0.0024]
[1724590598489,0.686835,63960.0,63959.0,0.0024]
[1724590600488,0.71216982,63960.0,63959.0,0.0024]
[1724590600897,0.686835,63960.0,63959.0,0.0024]
[1724590601196,0.7121698,63960.0,63959.0,0.0024]
[1724590605891,0.686835,63960.0,63959.0,0.0024]
[1724590606193,0.7121698,63960.0,63959.0,0.0024]
[1724590607796,0.686835,63960.0,63959.0,0.0024]
[1724590608497,0.71216974,63960.0,63959.0,0.0124]
[1724590612304,0.71216974,63960.0,63959.0,0.05924572]
[1724590612487,0.686835,63960.0,63959.0,0.05924572]
[1724590614804,0.71216949,63960.0,63959.0,0.05924572]
[1724590615095,0.686835,63960.0,63959.0,0.05924572]
[1724590615301,0.686835,63960.0,63959.0,0.0124]
[1724590622894,0.590135,63960.0,63959.0,0.0124]
[1724590624805,0.590135,63960.0,63959.0,0.07483532]
[1724590629799,0.590135,63960.0,63959.0,0.0124]
[1724590630107,0.590135,63960.0,63959.0,0.04079805]
[1724590635512,0.61546808,63960.0,63959.0,0.04079805]
[1724590639206,0.590135,63960.0,63959.0,0.08760956]
[1724590640517,0.61546809,63960.0,63959.0,0.08760956]
[1724590641428,0.61546809,63960.0,63959.0,0.04079805]
[1724590641617,0.61546809,63960.0,63959.0,0.10323337]
[1724590641618,0.590135,63960.0,63959.0,0.10323337]
[1724590642419,0.590135,63960.0,63959.0,0.04079805]
[1724590643910,0.590135,63960.0,63959.0,0.11893405]
[1724590648621,0.61546808,63960.0,63959.0,0.11893405]
[1724590656521,0.590135,63960.0,63959.0,0.11893405]
[1724590659125,0.66831307,63960.0,63959.0,0.11893405]
[1724590660223,0.15831307,63960.0,63959.0,0.11893405]
[1724590660523,0.080135,63960.0,63959.0,0.11893405]
[1724590663519,0.15831307,63960.0,63959.0,0.11893405]
[1724590664020,0.66831307,63960.0,63959.0,0.11893405]
[1724590664224,0.66831307,63960.0,63959.0,0.18137313]
[1724590664431,0.590135,63960.0,63959.0,0.18137313]
[1724590665029,0.590135,63960.0,63959.0,0.54217313]
[1724590665334,0.590135,63960.0,63959.0,0.18137313]
[1724590665531,0.590135,63960.0,63959.0,0.54217313]
[1724590665932,0.590135,63960.0,63959.0,0.18137313]
[1724590666233,0.590135,63960.0,63959.0,0.54217313]
[1724590666437,0.590135,63960.0,63959.0,0.47973405]
[1724590667131,0.590135,63960.0,63959.0,0.11893405]
[1724590667532,0.590135,63960.0,63959.0,0.47973405]
[1724590668034,0.590135,63960.0,63959.0,0.11893405]
[1724590668242,0.590135,63960.0,63959.0,0.47973405]
[1724590671533,0.590135,63960.0,63959.0,0.54217313]
[1724590671735,0.590135,63960.0,63959.0,0.47973405]
[1724590675932,0.590135,63960.0,63959.0,0.11893405]
[1724590676133,0.590135,63960.0,63959.0,0.47973405]
[1724590676942,0.590135,63960.0,63959.0,0.11893405]
[1724590677137,0.590135,63960.0,63959.0,0.47973405]
[1724590677338,0.590135,63960.0,63959.0,0.11893405]
[1724590677537,0.590135,63960.0,63959.0,0.47973405]
[1724590679142,0.590135,63960.0,63959.0,0.11893405]
[1724590679343,0.512,63960.0,63959.0,0.47973405]
[1724590679644,0.512,63960.0,63959.0,0.54215119]
[1724590680239,0.002,63960.0,63959.0,0.54215119]
[1724590680844,0.512,63960.0,63959.0,0.54215119]
[1724590681046,0.512,63960.0,63959.0,0.47973405]
[1724590682050,0.512,63960.0,63959.0,0.47873405]
[1724590682348,0.512,63960.0,63959.0,0.54214671]
[1724590682555,0.002,63960.0,63959.0,0.47873405]
[1724590682743,0.002,63960.0,63959.0,0.54114785]
[1724590683956,0.002,63960.0,63959.0,0.18034785]
[1724590684247,0.589094,63961.0,63959.0,0.54114785]
[1724590684457,0.002,63960.0,63959.0,0.54114785]
[1724590684751,0.002,63960.0,63959.0,0.18034785]
[1724590685143,0.002,63960.0,63959.0,0.54114785]
[1724590685346,0.002,63960.0,63959.0,0.18034785]
[1724590685543,0.002,63960.0,63959.0,0.54114785]
[1724590686146,0.002,63960.0,63959.0,0.47873405]
[1724590686655,0.002,63960.0,63959.0,0.11793405]
[1724590686953,0.002,63960.0,63959.0,0.47873405]
[1724590687339,0.589054,63961.0,63959.0,0.47873405]
[1724590687549,0.002,63960.0,63959.0,0.47873405]
[1724590687749,0.002,63960.0,63959.0,0.11793405]
[1724590687949,0.002,63960.0,63959.0,0.47873405]
[1724590688551,0.002,63960.0,63959.0,0.5567782]
[1724590688946,0.65148206,63961.0,63959.0,0.5567782]
[1724590689155,0.65264206,63961.0,63959.0,0.5567782]
[1724590689546,0.65264206,63961.0,63960.0,0.3608]
[1724590689752,0.65264206,63961.0,63960.0,0.1104]
[1724590690146,0.65264206,63961.0,63960.0,0.4712]
[1724590690948,0.65264206,63961.0,63960.0,0.1114]
[1724590691153,0.65264206,63961.0,63960.0,0.4722]
[1724590691354,0.65064206,63961.0,63960.0,0.4722]
[1724590692355,0.65264206,63961.0,63960.0,0.4722]
[1724590692962,0.65264206,63961.0,63960.0,0.1114]
[1724590693158,0.65264206,63961.0,63960.0,0.4722]
[1724590693563,0.65264206,63961.0,63960.0,0.1114]
[1724590693767,0.65264206,63961.0,63960.0,0.4722]
[1724590694061,0.65264206,63961.0,63960.0,0.1114]
[1724590694253,0.65264206,63961.0,63960.0,0.4722]
[1724590694665,0.65064206,63961.0,63960.0,0.4722]
[1724590694957,0.65264206,63961.0,63960.0,0.4722]
[1724590695163,0.590134,63961.0,63960.0,0.4722]
[1724590695562,0.588134,63961.0,63960.0,0.4722]
[1724590695763,0.590134,63961.0,63960.0,0.4722]
[1724590697959,0.65266098,63961.0,63960.0,0.4722]
[1724590698857,0.65266098,63961.0,63960.0,0.1114]
[1724590699060,0.65266098,63961.0,63960.0,0.4722]
[1724590699260,0.65266098,63961.0,63960.0,0.1114]
[1724590699461,0.65266098,63961.0,63960.0,0.4722]
[1724590700266,0.65266098,63961.0,63960.0,0.1114]
[1724590700461,0.65266098,63961.0,63960.0,0.4722]
[1724590701262,0.590134,63961.0,63960.0,0.4722]
[1724590701471,0.65266247,63961.0,63960.0,0.4722]
[1724590701669,0.66831207,63961.0,63960.0,0.4722]
[1724590701965,0.66831207,63961.0,63960.0,0.17381131]
[1724590702166,0.66831207,63961.0,63960.0,0.53461131]
[1724590702968,0.66831207,63961.0,63960.0,0.17381131]
[1724590703173,0.66831207,63961.0,63960.0,0.53461131]
[1724590703862,0.66831207,63961.0,63960.0,0.4722]
[1724590705368,0.66831207,63961.0,63960.0,0.1114]
[1724590705567,0.66831207,63961.0,63960.0,0.4722]
[1724590706063,0.66831207,63961.0,63960.0,0.1114]
[1724590706263,0.66831207,63961.0,63960.0,0.4722]
[1724590706969,0.61546597,63961.0,63960.0,0.4722]
[1724590707362,0.61546597,63961.0,63960.0,0.51901797]
[1724590707864,0.66456597,63961.0,63960.0,0.51901797]
[1724590708659,0.639234,63961.0,63960.0,0.4722]
[1724590709059,0.639234,63961.0,63960.0,0.1114]
[1724590709263,0.639234,63961.0,63960.0,0.4722]
[1724590709472,0.639234,63961.0,63960.0,0.53461899]
[1724590712871,0.639234,63961.0,63960.0,0.17381899]
[1724590713074,0.639234,63961.0,63960.0,0.53461899]
[1724590713679,0.639234,63961.0,63960.0,0.17381899]
[1724590714178,0.639234,63961.0,63960.0,0.53461899]
[1724590714488,0.639234,63961.0,63960.0,0.17381899]
[1724590714778,0.639234,63961.0,63960.0,0.53461899]
[1724590714974,0.639234,63961.0,63960.0,0.17381899]
[1724590715364,0.639234,63961.0,63960.0,0.53461899]
[1724590715571,0.639234,63961.0,63960.0,0.17381899]
[1724590715972,0.639234,63961.0,63960.0,0.53461899]
[1724590716683,0.66456619,63961.0,63960.0,0.15820399]
[1724590716981,0.66456619,63961.0,63960.0,0.51900399]
[1724590718987,0.66456619,63961.0,63960.0,0.15820399]
[1724590719372,0.66456619,63961.0,63960.0,0.51900399]
[1724590720075,0.66456619,63961.0,63960.0,0.15820399]
[1724590720276,0.66456619,63961.0,63960.0,0.51900399]
[1724590721179,0.66456619,63961.0,63960.0,0.15820399]
[1724590721379,0.66456619,63961.0,63960.0,0.51900399]
[1724590722277,0.66456619,63961.0,63960.0,0.15820399]
[1724590722479,0.66456619,63961.0,63960.0,0.51900399]
[1724590723674,0.639234,63961.0,63960.0,0.51900399]
[1724590723989,0.639234,63961.0,63960.0,0.53461899]
[1724590724777,0.639234,63961.0,63960.0,0.4722]
[1724590724981,0.639234,63961.0,63960.0,0.1114]
[1724590725187,0.639234,63961.0,63960.0,0.4722]
[1724590725986,0.639234,63961.0,63960.0,0.1114]
[1724590726192,0.639234,63961.0,63960.0,0.4722]
[1724590726898,0.639234,63961.0,63960.0,0.1114]
[1724590727079,0.639234,63961.0,63960.0,0.4722]
[1724590728190,0.639234,63961.0,63960.0,0.1114]
[1724590728390,0.639234,63961.0,63960.0,0.4722]
[1724590728587,0.639234,63961.0,63960.0,0.1114]
[1724590728989,0.639234,63961.0,63960.0,0.4722]
[1724590729491,0.639234,63961.0,63960.0,0.1114]
[1724590730284,0.639234,63961.0,63960.0,0.4722]
[1724590731082,0.639234,63961.0,63960.0,0.1114]
[1724590731283,0.639234,63961.0,63960.0,0.4722]
[1724590731789,0.639234,63961.0,63960.0,0.1114]
[1724590732189,0.639234,63961.0,63960.0,0.4722]
[1724590732590,0.639234,63961.0,63960.0,0.1114]
[1724590732786,0.639234,63961.0,63960.0,0.4722]
[1724590733187,0.639234,63961.0,63960.0,0.1114]
[1724590733582,0.639234,63961.0,63960.0,0.4722]
[1724590733790,0.639234,63961.0,63960.0,0.1114]
[1724590733989,0.639234,63961.0,63960.0,0.4722]
[1724590734184,0.639234,63961.0,63960.0,0.1114]
[1724590734891,0.639234,63961.0,63960.0,0.4722]
[1724590735894,0.639234,63961.0,63960.0,0.1114]
[1724590736190,0.639234,63961.0,63960.0,0.17383098]
[1724590736395,0.639234,63961.0,63960.0,0.1114]
[1724590736985,0.71737813,63961.0,63960.0,0.1114]
[1724590737389,0.639234,63961.0,63960.0,0.1114]
[1724590737796,0.71737813,63961.0,63960.0,0.1114]
[1724590738789,0.6645666,63961.0,63960.0,0.15822627]
[1724590740890,0.6645666,63961.0,63960.0,0.1114]
[1724590743197,0.7427006,63961.0,63960.0,0.1114]
[1724590743405,0.7427006,63961.0,63951.0,0.3608]
[1724590743406,0.078136,63959.0,63958.0,0.04682731]
[1724590743702,0.078136,63959.0,63955.0,0.06243502]
[1724590743703,0.156274,63958.0,63957.0,0.04682731]
[1724590743904,0.1816066,63958.0,63957.0,0.04682731]
[1724590744092,0.078139,63957.0,63956.0,0.04682731]
[1724590744319,0.1034716,63957.0,63956.0,0.04682731]
[1724590744494,0.1034716,63957.0,63955.0,0.04682731]
[1724590744495,0.15628,63956.0,63955.0,0.04682731]
[1724590744803,0.1816126,63956.0,63955.0,0.01]
[1724590745304,0.1820126,63956.0,63955.0,0.01]
[1724590746206,0.1830126,63956.0,63955.0,0.01]
[1724590746908,0.15768,63956.0,63955.0,0.01]
[1724590747294,0.15868,63956.0,63955.0,0.011]
[1724590747497,0.16068,63956.0,63955.0,0.011]
[1724590748812,0.08254,63956.0,63955.0,0.011]
[1724590750410,0.08254,63956.0,63955.0,0.05779779]
[1724590753818,0.18939281,63956.0,63955.0,0.011]
[1724590754213,0.55019281,63956.0,63955.0,0.011]
[1724590757122,0.18939281,63956.0,63955.0,0.011]
[1724590757325,0.55019281,63956.0,63955.0,0.011]
[1724590759124,0.18939281,63956.0,63955.0,0.011]
[1724590759320,0.55019281,63956.0,63955.0,0.011]
[1724590759717,0.18939281,63956.0,63955.0,0.011]
[1724590759920,0.55019281,63956.0,63955.0,0.011]
[1724590760924,0.4720668,63956.0,63955.0,0.011]
[1724590761821,0.4720668,63956.0,63955.0,0.05779779]
[1724590765223,0.1112668,63956.0,63955.0,0.05779779]
[1724590765422,0.4720668,63956.0,63955.0,0.05779779]
[1724590765628,0.1112668,63956.0,63955.0,0.05779779]
[1724590765829,0.4720668,63956.0,63955.0,0.05779779]
[1724590767828,0.1112668,63956.0,63955.0,0.05779779]
[1724590768021,0.4720668,63956.0,63955.0,0.05779779]
[1724590769121,0.1112668,63956.0,63955.0,0.05779779]
[1724590769323,0.4720668,63956.0,63955.0,0.05779779]
[1724590769523,0.4720668,63956.0,63955.0,0.011]
[1724590769719,0.44334,63956.0,63955.0,0.011]
[1724590769925,0.50583279,63956.0,63955.0,0.07343502]
[1724590770326,0.0044,63956.0,63955.0,0.089141]
[1724590771026,0.0034,63956.0,63955.0,0.088141]
[1724590771830,0.0024,63956.0,63955.0,0.088141]
[1724590772531,0.0014,63956.0,63955.0,0.088141]
[1724590772736,0.0024,63956.0,63955.0,0.088141]
[1724590798447,0.0024,63956.0,63955.0,0.15054647]
[1724590799047,0.06492592,63956.0,63955.0,0.088141]
[1724590800443,0.0024,63956.0,63955.0,0.16618515]
[1724590801044,0.0024,63956.0,63955.0,0.20721486]
[1724590802061,0.0024,63956.0,63955.0,0.2072075]
[1724590802254,0.0024,63956.0,63955.0,0.2047075]
[1724590803656,0.0024,63956.0,63955.0,0.28273996]
[1724590803857,0.0024,63956.0,63955.0,0.2047075]
[1724590804355,0.0024,63956.0,63955.0,0.64354517]
[1724590804552,0.0024,63956.0,63955.0,0.5655075]
[1724590805150,0.11114209,63959.0,63958.0,0.078137]
[1724590805350,0.11114209,63959.0,63958.0,0.188137]
[1724590805953,0.0486,63959.0,63958.0,0.188137]
[1724590806351,0.0486,63959.0,63958.0,0.2076816]
[1724590806554,0.0496,63959.0,63958.0,0.188137]
[1724590806758,0.0496,63959.0,63958.0,0.2076816]
[1724590807453,0.0516,63959.0,63958.0,0.2076816]
[1724590810656,0.11409075,63959.0,63958.0,0.25053456]
[1724590811055,0.5616,63959.0,63958.0,0.188137]
[1724590811563,0.62408977,63959.0,63958.0,0.188137]
[1724590812261,0.5616,63959.0,63958.0,0.188137]
[1724590812559,0.5616,63959.0,63958.0,0.15680329]
[1724590812769,0.58693417,63959.0,63958.0,0.11]
[1724590813460,0.66507017,63959.0,63958.0,0.11]
[1724590814058,0.639736,63959.0,63958.0,0.11]
[1724590815566,1.000536,63959.0,63958.0,0.11]
[1724590815953,1.000536,63959.0,63958.0,0.1568084]
[1724590816674,0.639736,63959.0,63958.0,0.1568084]
[1724590816882,1.000536,63959.0,63958.0,0.1568084]
[1724590818063,1.000536,63959.0,63958.0,0.11]
[1724590819070,0.639736,63959.0,63958.0,0.11]
[1724590819278,1.000536,63959.0,63958.0,0.11]
[1724590822484,1.000536,63959.0,63958.0,0.15680843]
[1724590823188,1.000536,63959.0,63958.0,0.11]
[1724590826281,1.06302641,63959.0,63958.0,0.17239756]
[1724590826883,0.9224,63959.0,63958.0,0.20768284]
[1724590827086,0.98488772,63959.0,63958.0,0.20768284]
[1724590827686,0.9224,63959.0,63958.0,0.20768186]
[1724590828675,0.60846402,63959.0,63958.0,0.188137]
[1724590829377,0.5616,63959.0,63958.0,0.188137]
[1724590829582,0.62408772,63959.0,63958.0,0.188137]
[1724590829780,0.62408772,63959.0,63958.0,0.25055997]
[1724590830282,0.62408772,63959.0,63958.0,0.188137]
[1724590831280,0.70222372,63959.0,63958.0,0.11]
[1724590832185,0.639736,63959.0,63958.0,0.15682377]
[1724590832385,0.639736,63959.0,63958.0,0.11]
[1724590833489,0.639736,63959.0,63958.0,0.15682357]
[1724590834389,0.639736,63959.0,63955.0,0.06242297]
[1724590834390,0.07814,63956.0,63955.0,0.06242297]
[1724590834576,0.07814,63956.0,63955.0,0.07242297]
[1724590835189,0.14102772,63956.0,63955.0,0.01]
[1724590838589,0.14102772,63956.0,63955.0,0.07242297]
[1724590839491,0.07854,63956.0,63955.0,0.07242297]
[1724590839884,0.10666647,63956.0,63955.0,0.07242297]
[1724590840385,0.16915785,63956.0,63955.0,0.07242297]
[1724590840593,0.10666647,63956.0,63955.0,0.07242297]
[1724590846297,0.169166,63956.0,63955.0,0.07242297]
[1724590846487,0.10666647,63956.0,63955.0,0.07242297]
[1724590846693,0.16916536,63956.0,63955.0,0.07242297]
[1724590848598,0.10666647,63956.0,63955.0,0.07242297]
[1724590850391,0.16916384,63956.0,63955.0,0.07242297]
[1724590853198,0.14103737,63956.0,63955.0,0.07242297]
[1724590853403,0.14103737,63956.0,63955.0,0.15056397]
[1724590854003,0.06289737,63956.0,63955.0,0.15056397]
[1724590854203,0.0004,63956.0,63955.0,0.088141]
[1724590856001,0.04727087,63956.0,63955.0,0.52697237]
[1724590856808,0.0004,63956.0,63955.0,0.64603978]
[1724590858011,0.0004,63956.0,63955.0,0.64602378]
[1724590858211,0.0004,63956.0,63955.0,0.56800841]
[1724590861104,0.0004,63956.0,63955.0,0.56800673]
[1724590861713,0.0004,63956.0,63955.0,0.64601575]
[1724590861909,0.04727087,63956.0,63955.0,0.088141]
[1724590862405,0.0004,63956.0,63955.0,0.088141]
[1724590864201,0.0004,63956.0,63955.0,0.15056131]
[1724590868514,0.0004,63956.0,63955.0,0.088141]
[1724590869910,0.0004,63956.0,63955.0,0.10768644]
[1724590870110,0.0468648,63960.0,63959.0,0.078136]
[1724590870318,0.0468648,63961.0,63960.0,0.078135]
[1724590870620,0.0468648,63961.0,63960.0,0.188135]
[1724590871014,0.0468648,63961.0,63960.0,0.188535]
[1724590871723,0.0468648,63961.0,63960.0,0.189535]
[1724590872419,0.0468648,63962.0,63961.0,0.078134]
[1724590872623,0.0468648,63962.0,63961.0,0.178134]
[1724590873318,0.0468648,63962.0,63961.0,0.178534]
[1724590873525,0.0468648,63963.0,63962.0,0.078132]
[1724590873720,0.0468648,63963.0,63962.0,0.25050446]
[1724590874120,0.0468648,63964.0,63962.0,0.188132]
[1724590874322,0.0468648,63964.0,63963.0,0.06237209]
[1724590874625,0.0468648,63964.0,63963.0,0.15237209]
[1724590874816,0.0468648,63964.0,63963.0,0.15277209]
[1724590875123,0.0468648,63964.0,63963.0,0.0904]
[1724590875313,0.5568648,63964.0,63963.0,0.0904]
[1724590876026,0.511,63964.0,63963.0,0.15377209]
[1724590876222,0.511,63964.0,63963.0,0.23190309]
[1724590877923,0.511,63964.0,63963.0,0.23090309]
[1724590879322,0.511,63964.0,63963.0,0.168531]
[1724590879630,0.511,63964.0,63963.0,0.23090309]
[1724590880427,0.511,63964.0,63963.0,0.168531]
[1724590886328,0.5578648,63964.0,63963.0,0.168531]